bitfinex-derivatives/quotes_BNBF0:USTF0_20250807
["timestamp","ask_amount","ask_price","bid_price","bid_amount"]
[1754596213742,0.86250172,779.96,779.71,0.85812333]
[1754596214037,1.052,780.03,779.59,0.85812333]
[1754596214236,1.052,780.03,779.23,1.167]
[1754596214237,0.86250172,780.02,779.61,0.85812333]
[1754596214438,0.86250172,780.01,779.86,0.85812333]
[1754596214638,0.86250172,780.0,779.86,0.85812333]
[1754596214842,1.052,780.03,779.86,0.85812333]
[1754596215443,1.052,780.03,779.73,0.85812333]
[1754596215838,1.052,780.03,779.85,0.85812333]
[1754596216137,1.052,780.03,779.91,0.85812333]
[1754596216442,1.052,780.03,779.76,0.85812333]
[1754596216643,0.86315905,780.78,779.63,0.85812333]
[1754596216844,0.86315905,780.66,779.52,0.85812333]
[1754596217038,0.86315905,780.66,779.23,1.167]
[1754596217039,0.86315905,780.56,779.41,0.85812333]
[1754596217344,0.86315905,780.53,779.34,0.85812333]
[1754596217544,0.86315905,780.49,779.31,0.85812333]
[1754596217845,0.86315905,780.36,779.25,0.85812333]
[1754596218042,0.86315905,780.34,779.23,1.167]
[1754596218344,0.86015256,780.33,779.25,0.85812333]
[1754596218541,0.86015256,780.32,779.25,0.85812333]
[1754596218846,1.72331161,780.31,779.34,0.85812333]
[1754596219144,0.86015256,780.3,779.34,0.85812333]
[1754596219345,0.86015256,780.29,779.41,0.85812333]
[1754596219546,0.86015256,780.28,779.41,0.85812333]
[1754596219846,0.86015256,780.27,779.41,0.85812333]
[1754596220040,0.86015256,780.26,779.41,0.85812333]
[1754596220245,0.86015256,780.25,779.41,0.85812333]
[1754596220545,0.86015256,780.24,779.41,0.85812333]
[1754596220741,0.86011199,780.23,779.41,0.85812333]
[1754596220944,0.86011199,780.22,779.4,0.85812333]
[1754596221148,0.86011199,780.21,779.39,0.85812333]
[1754596221342,0.86011199,780.2,779.39,0.85812333]
[1754596221543,0.86011199,780.19,779.39,0.85812333]
[1754596221743,0.86011199,780.18,779.39,0.85812333]
[1754596221948,0.86011199,780.17,779.39,0.85812333]
[1754596222149,0.86011199,780.16,779.39,0.85812333]
[1754596222344,0.86011199,780.15,779.39,0.85812333]
[1754596222544,0.86011199,780.14,779.39,0.85812333]
[1754596222747,0.86011199,780.13,779.39,0.85812333]
[1754596222949,0.86011199,780.12,779.39,0.85812333]
[1754596223247,0.86011199,780.11,779.39,0.85812333]
[1754596223446,0.86011199,780.1,779.39,0.85812333]
[1754596223642,0.86011199,780.09,779.37,0.85812333]
[1754596223850,0.86011199,780.08,779.31,0.85812333]
[1754596224144,0.86315905,780.26,779.28,0.85812333]
[1754596224349,0.86010871,780.25,779.28,0.85812333]
[1754596224545,0.86315905,780.26,779.29,0.85812333]
[1754596225545,0.86315905,780.27,779.29,0.85812333]
[1754596225750,0.86315905,780.27,778.25,2.8805262]
[1754596225751,0.86315905,780.24,779.32,0.85812333]
[1754596225943,0.86315905,780.25,779.32,0.85812333]
[1754596226246,0.86315905,780.26,779.3,1.90012333]
[1754596226449,0.86315905,780.27,779.3,1.90012333]
[1754596226647,0.86315905,780.28,779.31,0.85812333]
[1754596226949,0.86315905,780.3,779.33,0.85812333]
[1754596227146,0.85958994,780.29,779.33,0.85812333]
[1754596227346,0.85958994,780.28,779.33,0.85812333]
[1754596227549,0.85958994,780.27,779.33,0.85812333]
[1754596227747,0.85958994,780.26,779.33,0.85812333]
[1754596228047,0.85958994,780.25,779.33,0.85812333]
[1754596228246,0.85958994,780.25,779.3,1.042]
[1754596228247,1.109,780.31,779.31,0.85812333]
[1754596228445,0.85943137,780.3,779.31,0.85812333]
[1754596228649,1.109,780.31,779.31,0.85812333]
[1754596228848,1.109,780.31,779.3,1.042]
[1754596232054,1.109,780.31,779.38,0.85812333]
[1754596232248,1.109,780.31,779.46,0.85812333]
[1754596233149,1.109,780.31,779.47,0.85812333]
[1754596233353,1.109,780.31,779.46,0.85812333]
[1754596233950,1.109,780.31,779.47,0.85812333]
[1754596234153,1.109,780.31,779.56,0.85812333]
[1754596234350,1.109,780.31,779.64,0.85812333]
[1754596234751,1.109,780.31,779.63,0.85812333]
[1754596235253,1.109,780.31,779.62,0.85812333]
[1754596235451,1.109,780.31,779.57,0.85812333]
[1754596235653,1.109,780.31,779.33,1.1423101]
[1754596235654,1.109,780.31,779.58,0.85812333]
[1754596236151,1.109,780.31,779.62,0.85812333]
[1754596236557,1.109,780.31,779.63,0.85812333]
[1754596237250,1.109,780.31,779.61,0.85812333]
[1754596237453,1.109,780.31,779.57,0.85812333]
[1754596238252,1.109,780.31,779.5,0.85812333]
[1754596238456,1.109,780.31,779.49,0.85812333]
[1754596238656,1.109,780.31,779.5,0.85812333]
[1754596238857,0.85644768,780.3,779.51,0.85812333]
[1754596239053,1.109,780.31,779.52,0.85812333]
[1754596239253,0.85644768,780.3,779.51,0.85812333]
[1754596239453,1.109,780.31,779.51,0.85812333]
[1754596239757,0.85641574,780.3,779.51,0.85812333]
[1754596239954,1.109,780.31,779.51,0.85812333]
[1754596240153,0.85641574,780.3,779.51,0.85812333]
[1754596240353,1.109,780.31,779.51,0.85812333]
[1754596240554,0.85639006,780.3,779.51,0.85812333]
[1754596240757,1.109,780.31,779.51,0.85812333]
[1754596240955,0.85639006,780.3,779.51,0.85812333]
[1754596241154,1.109,780.31,779.51,0.85812333]
[1754596241457,0.85639233,780.3,779.5,0.85812333]
[1754596241657,0.85639233,780.29,779.49,0.85812333]
[1754596241855,0.85639233,780.28,779.47,0.85812333]
[1754596242054,0.85639233,780.27,779.48,0.85812333]
[1754596242254,1.109,780.31,779.47,0.85812333]
[1754596242255,0.85639233,780.26,779.47,0.85812333]
[1754596242455,0.85639233,780.25,779.46,0.85812333]
[1754596242657,0.85639233,780.24,779.46,0.85812333]
[1754596242854,0.85641137,780.23,779.46,0.85812333]
[1754596243058,1.109,780.31,779.46,0.85812333]
[1754596243255,0.85641137,780.3,779.49,0.85812333]
[1754596243555,1.109,780.31,779.51,0.85812333]
[1754596243556,0.85641137,780.29,779.51,0.85812333]
[1754596243753,0.85641137,780.28,779.51,0.85812333]
[1754596243957,0.85641137,780.27,779.51,0.85812333]
[1754596244253,1.109,780.31,779.51,0.85812333]
[1754596244554,0.85633782,780.3,779.5,0.85812333]
[1754596244758,0.85633782,780.29,779.49,0.85812333]
[1754596244958,0.85633782,780.28,779.49,0.85812333]
[1754596245158,1.109,780.31,779.49,0.85812333]
[1754596245358,0.85636096,780.3,779.49,0.85812333]
[1754596245555,0.85636096,780.29,779.49,0.85812333]
[1754596245760,1.109,780.31,779.49,0.85812333]
[1754596245961,1.109,780.31,779.47,0.85812333]
[1754596246256,1.109,780.31,779.49,0.85812333]
[1754596246757,1.109,780.31,779.48,0.85812333]
[1754596250663,1.109,780.31,779.49,0.85812333]
[1754596251466,1.109,780.31,779.51,0.85812333]
[1754596251765,0.85625068,780.3,779.51,0.85812333]
[1754596251965,1.109,780.31,779.51,0.85812333]
[1754596252265,1.109,780.31,779.53,0.85812333]
[1754596253365,1.109,780.31,779.54,0.85812333]
[1754596253765,1.109,780.31,779.55,0.85812333]
[1754596253962,1.109,780.31,779.38,1.1423101]
[1754596253963,0.8564258,780.3,779.65,0.85812333]
[1754596254163,1.109,780.31,779.66,0.85812333]
[1754596254365,1.109,780.31,779.69,0.85812333]
[1754596254766,1.109,780.31,779.7,0.85812333]
[1754596255164,0.86315905,780.67,779.69,0.85812333]
[1754596255361,0.85628163,780.66,779.69,0.85812333]
[1754596255565,0.85628163,780.65,779.69,0.85812333]
[1754596255766,0.85628163,780.64,779.69,0.85812333]
[1754596256066,0.85628163,780.63,779.69,0.85812333]
[1754596256366,0.85628163,780.62,779.7,0.919]
[1754596256666,0.85628163,780.61,779.7,0.919]
[1754596256867,0.85628163,780.6,779.7,0.919]
[1754596257163,0.85628163,780.59,779.7,0.919]
[1754596257463,0.85628163,780.58,779.7,0.919]
[1754596257662,0.85628163,780.57,779.7,0.919]
[1754596257867,0.85628163,780.56,779.7,0.919]
[1754596259962,1.179,780.57,779.7,0.919]
[1754596260467,0.85644886,780.56,779.7,0.919]
[1754596260666,0.85644886,780.55,779.7,0.919]
[1754596260866,0.85644886,780.54,779.7,0.919]
[1754596261067,0.85644886,780.53,779.7,0.919]
[1754596261265,0.85644886,780.52,779.7,0.919]
[1754596261466,0.85644886,780.51,779.7,0.919]
[1754596261666,0.85644886,780.5,779.7,0.919]
[1754596261968,0.85644886,780.49,779.7,0.919]
[1754596262163,0.85644886,780.48,779.7,0.919]
[1754596262467,0.85644886,780.47,779.7,0.919]
[1754596262764,0.85644886,780.46,779.7,0.919]
[1754596262968,0.85644886,780.45,779.7,0.919]
[1754596263170,0.85644886,780.44,779.7,0.919]
[1754596263469,1.179,780.57,779.7,0.919]
[1754596263470,0.85644886,780.43,779.7,0.919]
[1754596263668,1.179,780.57,779.7,0.919]
[1754596263866,0.8566596,780.56,779.7,0.919]
[1754596264172,0.8566596,780.55,779.7,0.919]
[1754596264365,0.8566596,780.54,779.7,0.919]
[1754596264565,0.8566596,780.53,779.7,0.919]
[1754596264870,0.8566596,780.52,779.7,0.919]
[1754596265070,0.8566596,780.56,779.7,0.919]
[1754596265265,0.8566596,780.55,779.7,0.919]
[1754596265469,0.8566596,780.54,779.7,0.919]
[1754596265668,0.8566596,780.53,779.7,0.919]
[1754596265868,0.8566596,780.52,779.7,0.919]
[1754596266071,0.8566596,780.51,779.7,0.919]
[1754596266272,0.8566596,780.5,779.7,0.919]
[1754596266473,0.8566596,780.49,779.7,0.919]
[1754596266773,0.8566596,780.48,779.7,0.919]
[1754596267073,0.8566596,780.47,779.7,0.919]
[1754596267270,0.8566596,780.46,779.55,0.85812333]
[1754596267572,0.85825642,780.45,779.57,0.85812333]
[1754596267872,0.85825642,780.44,779.57,0.85812333]
[1754596268070,0.85825642,780.43,779.57,0.85812333]
[1754596268268,0.85825642,780.42,779.59,0.85812333]
[1754596268572,0.85825642,780.41,779.59,0.85812333]
[1754596268871,0.85825642,780.4,779.59,0.85812333]
[1754596269072,0.85825642,780.39,779.59,0.85812333]
[1754596269273,0.85825642,780.38,779.59,0.85812333]
[1754596269475,0.85825642,780.37,779.6,0.85812333]
[1754596269674,0.85825642,780.36,779.6,0.85812333]
[1754596269873,0.85825642,780.35,779.6,0.85812333]
[1754596270070,0.85825642,780.34,779.61,0.797]
[1754596270370,0.85825642,780.33,779.63,0.85812333]
[1754596270574,0.85825642,780.32,779.63,0.85812333]
[1754596270773,0.85825642,780.31,779.63,0.85812333]
[1754596270970,0.85825642,780.3,779.63,0.85812333]
[1754596271174,0.85825642,780.29,779.63,0.85812333]
[1754596271372,0.85825642,780.28,779.63,0.85812333]
[1754596271576,0.85825642,780.27,779.63,0.85812333]
[1754596271775,0.86315905,780.53,779.63,0.85812333]
[1754596271975,0.85877241,780.52,779.63,0.85812333]
[1754596272174,0.85877241,780.51,779.63,0.85812333]
[1754596272372,0.85877241,780.5,779.63,0.85812333]
[1754596272676,0.85877241,780.49,779.63,0.85812333]
[1754596272878,0.85877241,780.48,779.63,0.85812333]
[1754596273078,0.85877241,780.47,779.61,1.65512333]
[1754596273277,0.85877241,780.46,779.61,1.65512333]
[1754596273577,0.85877241,780.45,779.61,1.65512333]
[1754596273777,0.85877241,780.44,779.61,1.65512333]
[1754596274076,0.85877241,780.43,779.61,1.65512333]
[1754596274276,0.85877241,780.42,779.61,0.797]
[1754596274473,0.85877241,780.41,779.61,0.797]
[1754596274675,0.85877241,780.4,779.61,0.797]
[1754596274873,0.85877241,780.39,779.61,0.797]
[1754596275074,0.85877241,780.38,779.61,0.797]
[1754596275274,0.85877241,780.37,779.61,0.797]
[1754596275577,0.85877241,780.36,779.61,1.65512333]
[1754596275773,0.85877241,780.35,779.61,0.797]
[1754596275974,0.85877241,780.34,779.61,0.797]
[1754596276173,0.85877241,780.33,779.61,0.797]
[1754596276375,0.86315905,780.49,779.61,0.797]
[1754596276673,0.85952747,780.48,779.61,0.797]
[1754596276874,0.85952747,780.47,779.61,0.797]
[1754596277076,0.85974422,780.46,779.61,0.797]
[1754596277374,0.85974422,780.45,779.61,0.797]
[1754596277575,0.86315905,780.47,779.61,0.797]
[1754596277776,0.86003709,780.46,779.61,0.797]
[1754596277976,0.86003709,780.45,779.61,0.797]
[1754596278174,0.86003709,780.44,779.61,0.797]
[1754596278474,0.86315905,780.42,779.61,0.797]
[1754596278672,0.86003709,780.41,779.61,0.797]
[1754596279274,0.86003709,780.4,779.61,0.797]
[1754596279573,0.86003709,780.39,779.61,0.797]
[1754596279773,0.86003709,780.38,779.61,0.797]
[1754596280078,0.86315905,780.43,779.61,0.797]
[1754596280277,0.86033353,780.42,779.61,0.797]
[1754596280578,0.86033353,780.41,779.61,0.797]
[1754596280777,0.86033353,780.4,779.61,0.797]
[1754596280978,0.86033353,780.39,779.63,0.85812333]
[1754596281179,0.86033353,780.38,779.65,0.85812333]
[1754596281475,0.86033353,780.37,779.64,0.85812333]
[1754596281679,0.86033353,780.36,779.69,0.85812333]
[1754596281875,0.86033353,780.35,779.69,0.85812333]
[1754596282074,0.86033353,780.34,779.69,0.85812333]
[1754596282278,0.86033353,780.33,779.69,0.85812333]
[1754596282575,0.86033353,780.32,779.69,0.85812333]
[1754596282775,0.86033353,780.31,779.69,0.85812333]
[1754596282973,0.86033353,780.3,779.69,0.85812333]
[1754596283277,0.86104308,780.29,779.69,0.85812333]
[1754596283477,0.86104308,780.28,779.69,0.85812333]
[1754596283679,0.86315905,780.56,779.7,1.68412333]
[1754596283976,0.86138956,780.55,779.76,0.85812333]
[1754596284175,0.86138956,780.54,779.77,0.85812333]
[1754596284379,0.86138956,780.53,779.86,0.85812333]
[1754596284677,0.86138956,780.52,779.86,0.85812333]
[1754596284880,0.86138956,780.51,779.83,0.85812333]
[1754596285080,1.179,780.57,779.7,0.826]
[1754596285081,0.86138956,780.5,779.84,0.85812333]
[1754596285280,0.86138956,780.49,779.88,0.85812333]
[1754596285481,0.86138956,780.48,779.82,0.85812333]
[1754596285682,0.86138956,780.47,779.81,0.85812333]
[1754596285882,1.179,780.57,779.8,0.85812333]
[1754596286078,0.86128018,780.56,779.8,0.85812333]
[1754596286283,0.86128018,780.55,779.8,0.85812333]
[1754596286482,0.86110194,780.54,779.83,0.85812333]
[1754596286683,1.179,780.57,779.9,0.85812333]
[1754596287178,1.179,780.57,779.89,0.85812333]
[1754596287383,1.179,780.57,779.92,0.85812333]
[1754596288185,1.179,780.57,779.9,0.85812333]
[1754596288584,1.179,780.57,779.94,0.85812333]
[1754596288880,1.179,780.57,779.95,0.85812333]
[1754596289284,1.179,780.57,779.97,0.85812333]
[1754596289484,1.179,780.57,779.98,0.85812333]
[1754596290080,1.179,780.57,779.99,0.85812333]
[1754596290582,1.179,780.57,779.98,0.85812333]
[1754596290782,1.179,780.57,779.99,0.85812333]
[1754596290986,1.179,780.57,779.96,0.85812333]
[1754596291486,1.179,780.57,779.97,0.85812333]
[1754596291685,1.179,780.57,779.98,0.85812333]
[1754596292087,1.179,780.57,779.99,0.85812333]
[1754596292283,1.179,780.57,780.0,0.85812333]
[1754596292484,1.179,780.57,779.73,1.7283157]
[1754596292485,1.179,780.57,779.96,0.85812333]
[1754596292686,1.179,780.57,779.95,0.85812333]
[1754596292883,1.179,780.57,779.96,0.85812333]
[1754596293187,1.179,780.57,779.95,0.85812333]
[1754596293488,1.179,780.57,779.94,0.85812333]
[1754596293888,0.86315905,780.82,779.95,0.85812333]
[1754596294287,0.86315905,780.82,779.94,0.85812333]
[1754596294486,0.86315905,780.83,779.93,0.85812333]
[1754596294683,0.86315905,780.83,779.75,1.1423101]
[1754596294684,0.86315905,780.84,779.94,0.85812333]
[1754596294885,0.86315905,780.83,779.93,0.85812333]
[1754596295485,0.86315905,780.88,779.89,0.85812333]
[1754596295785,0.86315905,780.87,779.88,0.85812333]
[1754596295990,0.86315905,780.94,779.97,0.85812333]
[1754596296183,0.22289832,781.27,779.92,1.1423101]
[1754596296387,0.85999391,781.12,780.1,0.85362299]
[1754596296585,1.92696283,781.11,780.1,0.85362299]
[1754596296790,0.85596283,781.1,780.1,0.85362299]
[1754596296985,0.85596283,781.09,780.1,0.85362299]
[1754596297185,0.85596283,781.08,780.09,0.85362299]
[1754596297389,0.85596283,781.07,780.09,0.85362299]
[1754596297689,1.071,781.11,780.09,0.85362299]
[1754596297885,0.85447432,781.1,780.1,0.85362299]
[1754596298185,0.85447432,781.09,780.04,0.85362299]
[1754596298486,0.85447432,781.08,780.02,0.85362299]
[1754596298686,0.85447432,781.07,780.02,0.85362299]
[1754596298889,1.071,781.11,780.02,0.85362299]
[1754596299091,0.8541039,781.1,780.03,0.85362299]
[1754596299285,0.8541039,781.09,780.0,0.85362299]
[1754596299487,0.8541039,781.08,780.0,0.85362299]
[1754596299689,0.8541039,781.07,780.0,0.85362299]
[1754596299886,0.8541039,781.06,780.0,0.85362299]
[1754596300090,0.8541039,781.05,780.0,0.85362299]
[1754596300289,0.8541039,781.04,779.99,0.85362299]
[1754596300489,0.8541039,781.03,779.99,0.85362299]
[1754596300694,0.8541039,781.02,779.99,0.85362299]
[1754596300895,1.071,781.11,779.99,0.85362299]
[1754596301091,0.85356094,781.1,779.99,0.85362299]
[1754596301294,0.85356094,781.09,779.98,0.85362299]
[1754596301590,0.85356094,781.08,779.99,0.85362299]
[1754596301798,0.85356094,781.07,780.0,0.85362299]
[1754596301996,0.85356094,781.06,780.0,0.85362299]
[1754596302196,0.85356094,781.05,780.0,0.85362299]
[1754596302392,0.85356094,781.04,779.99,0.85362299]
[1754596302693,0.85356094,781.03,779.99,0.85362299]
[1754596302893,0.85356094,781.02,779.99,0.85362299]
[1754596303095,0.85356094,781.01,779.99,0.85362299]
[1754596303297,0.85356094,781.0,779.99,0.85362299]
[1754596303500,1.071,781.11,779.99,0.85362299]
[1754596303694,0.8533341,781.1,779.99,0.85362299]
[1754596303893,0.8533341,781.09,779.99,0.85362299]
[1754596304095,0.8533341,781.09,779.7,0.826]
[1754596304096,0.8533341,781.08,779.94,0.85362299]
[1754596304294,0.8533341,781.07,779.93,0.85362299]
[1754596304495,0.8533341,781.06,779.93,0.85362299]
[1754596304699,1.071,781.11,779.93,0.85362299]
[1754596304700,0.8533341,781.05,779.93,0.85362299]
[1754596304902,0.8533341,781.04,779.93,0.85362299]
[1754596305101,0.8533341,781.03,779.93,0.85362299]
[1754596305299,0.8533341,781.03,779.7,0.826]
[1754596305300,0.8533341,781.02,779.92,0.85362299]
[1754596305500,0.8533341,781.01,779.92,0.85362299]
[1754596305702,0.8533341,781.0,779.92,0.85362299]
[1754596306000,0.8533341,780.99,779.92,0.85362299]
[1754596306198,0.8533341,780.98,779.92,0.85362299]
[1754596306400,0.8533341,780.97,779.92,0.85362299]
[1754596306699,0.8533341,780.96,779.92,0.85362299]
[1754596306897,0.8533341,780.95,779.92,0.85362299]
[1754596307101,0.8533341,780.94,779.91,0.85362299]
[1754596307300,0.8533341,780.93,779.9,0.85362299]
[1754596307500,1.071,781.11,779.9,0.85362299]
[1754596307698,0.85314125,781.1,779.9,0.85362299]
[1754596307897,0.85314125,781.09,779.92,0.85362299]
[1754596308104,0.85314125,781.08,779.92,0.85362299]
[1754596308300,0.85314125,781.07,779.91,0.85362299]
[1754596308501,0.85314125,781.06,779.91,0.85362299]
[1754596308798,0.85314125,781.05,779.91,0.85362299]
[1754596308998,0.85314125,781.04,779.91,0.85362299]
[1754596309199,0.85314125,781.03,779.92,0.85362299]
[1754596309501,0.85314125,781.02,779.92,0.85362299]
[1754596309697,0.85314125,781.01,779.92,0.85362299]
[1754596309902,0.85314125,781.0,779.92,0.85362299]
[1754596310098,0.85314125,780.99,779.92,0.85362299]
[1754596310301,0.85314125,780.98,779.92,0.85362299]
[1754596310498,0.85314125,780.97,779.92,0.85362299]
[1754596310801,0.85314125,780.96,779.92,0.85362299]
[1754596310998,0.85314125,780.95,779.92,0.85362299]
[1754596311197,0.85314125,780.94,779.91,0.85362299]
[1754596311403,0.85314125,780.93,779.91,0.85362299]
[1754596311597,0.85314125,780.92,779.92,0.85362299]
[1754596311901,1.071,781.11,779.92,0.85362299]
[1754596311902,0.85314125,780.91,779.92,0.85362299]
[1754596312103,1.071,781.11,779.92,0.85362299]
[1754596312402,1.071,781.11,779.91,0.85362299]
[1754596312602,0.85308619,781.1,779.92,0.85362299]
[1754596312798,0.85308619,781.09,779.91,0.85362299]
[1754596313099,0.85308619,781.08,779.92,0.85362299]
[1754596313299,0.85308619,781.07,779.91,0.85362299]
[1754596313503,0.85308619,781.06,779.91,0.85362299]
[1754596313703,0.85308619,781.05,779.91,0.85362299]
[1754596313998,0.85308619,781.04,779.9,0.85362299]
[1754596314297,0.85308619,781.04,779.68,1.1423101]
[1754596314298,0.85308619,781.03,779.89,0.85362299]
[1754596314499,0.85308619,781.02,779.91,0.85362299]
[1754596314799,0.85308619,781.01,779.91,0.85362299]
[1754596315004,0.85308619,781.0,779.91,0.85362299]
[1754596315304,0.85308619,780.99,779.91,0.85362299]
[1754596315604,0.85308619,780.98,779.91,0.85362299]
[1754596315801,0.85308619,780.97,779.91,0.85362299]
[1754596316001,0.85308619,780.96,779.91,0.85362299]
[1754596316202,0.85308619,780.95,779.92,0.85362299]
[1754596316400,0.85308619,780.94,779.92,0.85362299]
[1754596316601,0.85308619,780.93,779.93,0.831]
[1754596316905,0.85308619,780.92,779.99,0.85362299]
[1754596317200,0.85308619,780.91,779.98,0.85362299]
[1754596317404,0.85308619,780.9,779.99,0.85362299]
[1754596317604,0.85308619,780.89,780.0,0.85362299]
[1754596317800,0.85308619,780.88,780.01,0.85362299]
[1754596318001,0.85308619,780.87,780.04,0.85362299]
[1754596318204,0.85308619,780.86,780.08,0.85362299]
[1754596318406,1.071,781.11,780.08,0.85362299]
[1754596318604,0.85304772,781.1,780.08,0.85362299]
[1754596318904,0.85304772,781.09,780.08,0.85362299]
[1754596319104,0.85304772,781.08,780.08,0.85362299]
[1754596319305,0.85304772,781.07,780.07,0.85362299]
[1754596319501,0.85304772,781.06,780.07,0.85362299]
[1754596319705,0.85304772,781.05,780.07,0.85362299]
[1754596319901,0.85304772,781.04,780.07,0.85362299]
[1754596320106,0.85304772,781.03,780.07,0.85362299]
[1754596320304,0.85304772,781.02,780.07,0.85362299]
[1754596320507,0.85304772,781.01,780.08,0.85362299]
[1754596320806,1.071,781.11,780.08,0.85362299]
[1754596320807,0.85304772,781.0,780.08,0.85362299]
[1754596321004,1.071,781.11,780.08,0.85362299]
[1754596321207,1.071,781.11,779.93,0.831]
[1754596321208,0.85295153,781.1,780.06,0.85362299]
[1754596321407,0.85295153,781.09,780.06,0.85362299]
[1754596321607,0.85295153,781.08,780.06,0.85362299]
[1754596321811,0.85295153,781.07,780.06,0.85362299]
[1754596322013,0.85295153,781.06,780.01,0.85362299]
[1754596322308,0.85295153,781.05,779.99,0.85362299]
[1754596322607,0.85295153,781.04,779.99,0.85362299]
[1754596322811,0.85295153,781.03,780.0,0.85362299]
[1754596323014,0.85295153,781.02,780.0,0.85362299]
[1754596323213,0.85295153,781.01,780.01,0.85362299]
[1754596323413,0.85295153,781.0,780.01,0.85362299]
[1754596323608,0.85295153,780.99,780.01,0.85362299]
[1754596323810,1.071,781.11,780.04,0.85362299]
[1754596324015,0.85285579,781.1,780.04,0.85362299]
[1754596324311,1.071,781.11,780.12,0.85362299]
[1754596324515,0.85274517,781.1,780.12,0.85362299]
[1754596324713,0.22289832,781.27,780.12,0.85362299]
[1754596324910,0.85274517,781.26,780.12,0.85362299]
[1754596325110,0.85274517,781.25,780.12,0.85362299]
[1754596325415,0.85274517,781.24,780.11,0.85362299]
[1754596325613,0.85274517,781.23,780.11,0.85362299]
[1754596325812,0.85274517,781.22,780.11,0.85362299]
[1754596326007,0.85274517,781.21,780.11,0.85362299]
[1754596326208,0.85274517,781.2,780.12,0.85362299]
[1754596326510,0.85274517,781.19,780.11,0.85362299]
[1754596326814,0.85274517,781.18,780.11,0.85362299]
[1754596327114,0.85274517,781.17,780.11,0.85362299]
[1754596327309,0.85274517,781.16,780.12,0.85362299]
[1754596327510,0.85274517,781.15,780.11,0.85362299]
[1754596327816,0.85272038,781.14,780.15,0.85362299]
[1754596328014,0.85272038,781.13,780.18,0.85362299]
[1754596328310,0.85272038,781.12,780.14,0.85362299]
[1754596328510,0.85272038,781.11,780.12,0.85362299]
[1754596328713,0.85272038,781.1,780.1,0.85362299]
[1754596328915,0.85272038,781.09,780.1,0.85362299]
[1754596329110,1.034,781.17,780.11,0.85362299]
[1754596329314,0.85294004,781.16,780.11,0.85362299]
[1754596329514,0.85294004,781.15,780.09,0.85362299]
[1754596329721,0.85294004,781.14,780.09,0.85362299]
[1754596329913,0.85294004,781.13,780.09,0.85362299]
[1754596330115,1.034,781.17,779.93,0.831]
[1754596330116,0.85294004,781.12,780.08,0.85362299]
[1754596330310,0.85294004,781.11,780.08,0.85362299]
[1754596330513,0.85294004,781.1,780.09,0.85362299]
[1754596330711,0.85294004,781.09,780.08,0.85362299]
[1754596331013,0.85294004,781.08,780.08,0.85362299]
[1754596331215,0.85294004,781.07,780.09,0.85362299]
[1754596331512,0.85294004,781.06,780.09,0.85362299]
[1754596331712,0.85294004,781.05,780.09,0.85362299]
[1754596332017,0.85294004,781.04,780.09,0.85362299]
[1754596332212,0.85294004,781.03,780.1,0.85362299]
[1754596332414,0.85294004,781.02,780.1,0.85362299]
[1754596332617,0.85294004,781.01,780.09,0.85362299]
[1754596332916,0.85294004,781.0,780.09,0.85362299]
[1754596333113,0.85294004,780.99,780.09,0.85362299]
[1754596333317,0.85294004,780.98,780.09,0.85362299]
[1754596333517,1.034,781.17,780.09,0.85362299]
[1754596333518,0.85294004,780.97,780.09,0.85362299]
[1754596333715,0.85294004,780.96,780.09,0.85362299]
[1754596334013,0.85294004,780.95,780.09,0.85362299]
[1754596334212,1.034,781.17,780.09,0.85362299]
[1754596334213,0.85294004,780.94,780.09,0.85362299]
[1754596334411,0.85294004,780.93,780.09,0.85362299]
[1754596334611,0.85294004,780.92,780.1,0.85362299]
[1754596334811,0.85294004,780.91,780.1,0.85362299]
[1754596335016,1.034,781.17,780.1,0.85362299]
[1754596335213,0.85410179,781.16,780.11,0.85362299]
[1754596335413,0.85410179,781.15,780.11,0.85362299]
[1754596335618,0.85410179,781.14,780.11,0.85362299]
[1754596335816,0.85410179,781.13,780.11,0.85362299]
[1754596336016,0.85410179,781.12,780.11,0.85362299]
[1754596336317,0.85410179,781.11,780.12,0.85362299]
[1754596336518,0.85410179,781.1,780.12,0.85362299]
[1754596336715,0.85410179,781.09,780.12,0.85362299]
[1754596337014,0.85410179,781.08,780.12,0.85362299]
[1754596337318,0.85410179,781.08,779.98,1.1423101]
[1754596337319,0.85410179,781.07,780.14,0.85362299]
[1754596337512,0.85410179,781.06,780.14,0.85362299]
[1754596337712,0.85410179,781.05,780.14,0.85362299]
[1754596337916,0.85410179,781.16,780.14,0.85362299]
[1754596338117,0.85410179,781.16,780.13,0.85362299]
[1754596338313,0.85410179,781.16,780.15,1.86162299]
[1754596338513,0.85410179,781.16,780.15,1.008]